bitfinex/quotes_ETHUSD_20220220
["timestamp","ask_amount","ask_price","bid_price","bid_amount"]
[1645375401902,1.6132952,2637.1,2636.9,0.86618846]
[1645375401903,1.61085907,2637.1,2636.9,0.86618846]
[1645375402103,1.6132952,2637.1,2636.9,1.46862483]
[1645375402304,0.00243613,2637.1,2636.9,1.46862483]
[1645375402566,0.00243613,2637.1,2637.0,11.52]
[1645375402767,0.00243613,2637.1,2637.0,11.82]
[1645375403266,1.72065386,2637.2,2637.0,0.3]
[1645375403673,1.72065386,2637.2,2636.9,12.98862486]
[1645375404265,1.71821775,2637.2,2636.9,12.98618846]
[1645375404466,1.72065386,2637.2,2636.9,12.98862486]
[1645375405466,1.72065386,2637.2,2636.9,12.98618846]
[1645375405467,1.71821775,2637.2,2636.9,12.98618846]
[1645375405666,1.72065386,2637.2,2636.9,12.98862486]
[1645375405867,1.72065386,2637.2,2636.9,1.46862486]
[1645375406706,1.71821775,2637.2,2636.9,12.98618846]
[1645375406905,1.72065386,2637.2,2636.9,12.98862486]
[1645375407104,1.72065386,2637.2,2636.9,1.46862486]
[1645375407306,1.72065386,2637.2,2636.9,12.98862486]
[1645375407504,1.72065386,2637.2,2636.9,1.46862486]
[1645375407910,1.71821775,2637.2,2636.9,1.46618846]
[1645375408109,1.7196408,2637.2,2637.0,11.52]
[1645375408307,1.7196408,2637.2,2637.0,0.3]
[1645375408508,1.7196408,2637.2,2636.9,1.46618846]
[1645375409112,1.71821775,2637.2,2637.0,11.52]
[1645375409311,1.72065132,2637.2,2637.0,11.52]
[1645375409513,1.67065132,2637.2,2637.0,11.82]
[1645375409711,0.56833004,2637.6,2637.2,16.5]
[1645375409959,0.70981136,2638.4,2637.5,11.52]
[1645375410159,1.61045821,2638.3,2637.5,11.52]
[1645375410355,1.61045821,2638.4,2637.7,11.52]
[1645375410555,0.70981136,2638.5,2637.7,11.52]
[1645375410755,1.61045821,2638.4,2638.3,1.07320304]
[1645375411158,1.61045821,2638.4,2638.3,12.59320304]
[1645375411359,1.61045821,2638.6,2638.3,1.07320304]
[1645375411559,1.61045821,2638.5,2638.3,1.07320304]
[1645375411755,0.89931136,2638.7,2638.3,1.07320304]
[1645375411756,1.61045821,2638.4,2638.3,1.07320304]
[1645375411958,1.61045821,2638.4,2637.8,0.3]
[1645375412155,1.61045821,2638.3,2637.8,0.3]
[1645375412355,1.61045821,2638.3,2637.3,1.0]
[1645375412858,0.1895,2638.9,2637.3,1.0]
[1645375412859,1.61045821,2638.2,2637.3,1.0]
[1645375413056,0.00123721,2638.2,2638.1,1.03073001]
[1645375413461,0.00123721,2638.2,2638.1,12.55073001]
[1645375413728,0.00123721,2638.2,2638.1,13.15073001]
[1645375413931,0.00123721,2638.2,2638.1,14.15073001]
[1645375414426,0.00224731,2638.3,2638.1,14.15073001]
[1645375414827,0.00224731,2638.3,2638.2,12.52]
[1645375415227,1.6102641,2638.9,2638.2,12.52]
[1645375415430,0.00224729,2638.3,2638.2,12.52]
[1645375415629,0.00224729,2638.3,2638.2,16.02]
[1645375416233,0.25898683,2639.0,2638.3,26.0022]
[1645375416436,0.01312477,2639.3,2638.9,16.52]
[1645375416738,1.77228433,2640.2,2638.9,16.52]
[1645375416739,0.70981136,2639.8,2639.6,11.51101307]
[1645375417232,0.70981136,2639.9,2639.6,10.09394655]
[1645375417465,0.70981136,2640.2,2639.6,10.09394655]
[1645375417664,0.70981136,2640.2,2639.6,0.3]
[1645375417865,0.70981136,2640.3,2639.6,0.3]
[1645375418065,0.70981136,2640.3,2639.5,1.58657736]
[1645375418264,0.70981136,2640.3,2639.6,11.52]
[1645375418468,0.89921136,2640.4,2639.6,11.52]
[1645375418664,0.70981136,2640.4,2639.6,11.82]
[1645375419065,0.25,2640.5,2639.6,11.82]
[1645375419464,0.25,2640.5,2640.1,0.90125139]
[1645375419665,0.70981136,2640.6,2639.6,11.82]
[1645375420066,0.70981136,2640.7,2639.6,11.82]
[1645375420272,0.70981136,2640.7,2639.8,11.52]
[1645375420473,0.70981136,2640.7,2640.0,11.52]
[1645375420674,0.70981136,2640.9,2640.2,11.52]
[1645375421072,1.38635373,2641.1,2640.2,12.12]
[1645375421310,0.151639,2641.1,2641.0,11.52]
[1645375421512,0.00972745,2641.1,2641.0,11.52]
[1645375421909,0.00972745,2641.1,2641.0,11.82]
[1645375422107,0.00972745,2641.1,2641.0,0.6]
[1645375422307,0.00972745,2641.1,2641.0,0.3]
[1645375422506,0.00972745,2641.1,2640.9,1.0]
[1645375422507,0.65834923,2641.6,2640.8,0.3]
[1645375422709,0.00243203,2641.2,2640.3,3.6892]
[1645375422906,0.00243203,2641.2,2640.6,1.02005735]
[1645375423304,0.00243203,2641.2,2640.6,12.54005735]
[1645375423505,0.1892,2641.8,2640.6,12.54005735]
[1645375423906,0.00223789,2641.0,2640.6,12.54005735]
[1645375424613,0.00223789,2641.0,2640.6,13.14005735]
[1645375424957,0.00223792,2640.9,2640.8,11.52]
[1645375425152,0.00223792,2640.9,2640.8,12.12]
[1645375425751,0.00223792,2640.9,2640.8,13.12]
[1645375426152,0.25,2641.9,2641.2,0.92051313]
[1645375426352,9.29186392,2642.2,2641.2,0.92051313]
[1645375426353,0.00895029,2641.4,2641.2,0.92051313]
[1645375427157,7.38,2642.2,2641.2,0.92051313]
[1645375427357,0.00243194,2641.4,2641.2,12.44051313]
[1645375427954,0.4605009,2642.3,2641.2,12.44051313]
[1645375428154,0.1892,2642.3,2641.2,12.44051313]
[1645375429008,1.15801608,2642.3,2641.2,12.44051313]
[1645375429204,0.1892,2642.3,2641.2,12.44051313]
[1645375429404,0.13819997,2642.4,2641.2,12.44051313]
[1645375429809,0.00141277,2641.9,2641.2,12.44051313]
[1645375430606,0.56546345,2642.4,2641.2,12.44051313]
[1645375431209,0.56546345,2642.4,2641.2,12.74051313]
[1645375431609,0.56546345,2642.4,2641.8,1.11224184]
[1645375431808,1.46175205,2641.5,2641.3,0.87379213]
[1645375432008,1.46175205,2641.5,2641.4,11.52]
[1645375432212,1.46175205,2641.5,2641.4,15.62]
[1645375432854,1.46175205,2641.5,2641.4,16.62]
[1645375433054,1.46175205,2641.5,2641.4,13.12]
[1645375433756,1.46175205,2641.5,2641.4,1.6]
[1645375434157,1.46175205,2641.5,2641.4,0.6]
[1645375434359,1.46175205,2641.5,2641.1,12.52]
[1645375434560,1.46175205,2641.5,2641.3,0.00243417]
[1645375435360,1.46175205,2641.5,2641.3,0.96092822]
[1645375435560,1.46175205,2641.5,2641.3,0.95849405]
[1645375435757,1.46175205,2641.5,2641.3,0.96092824]
[1645375436212,1.46175205,2641.5,2641.4,0.3]
[1645375436917,1.46175205,2641.5,2641.4,12.82]
[1645375437114,1.46175205,2641.5,2641.3,1.26092822]
[1645375437914,1.46175205,2641.5,2641.3,1.25849405]
[1645375438215,1.46175205,2641.5,2641.4,0.3]
[1645375439972,1.46175205,2641.5,2641.3,1.26092822]
[1645375440562,1.46175205,2641.5,2641.3,1.25849405]
[1645375440962,1.46175205,2641.5,2641.4,0.3]
[1645375446507,1.46175205,2641.5,2641.4,15.32]
[1645375446707,1.46175205,2641.5,2641.4,12.82]
[1645375447304,1.46175205,2641.5,2641.4,16.32]
[1645375447558,0.25,2642.4,2641.6,11.52]
[1645375447758,0.25,2642.4,2641.8,11.52]
[1645375447964,0.0022375,2642.0,2641.8,11.52]
[1645375448157,0.0022375,2642.0,2641.8,12.12]
[1645375448757,0.6492,2642.9,2641.9,0.91752807]
[1645375448958,1.60830411,2642.8,2641.9,0.91752807]
[1645375449162,0.00894882,2642.6,2642.4,1.03939946]
[1645375449357,1.53387765,2642.2,2641.9,3.5]
[1645375449556,1.53387765,2642.2,2642.0,0.86792051]
[1645375449763,1.48387765,2642.2,2642.0,1.16792051]
[1645375449961,1.48387765,2642.2,2642.0,12.98792051]
[1645375450162,0.46,2642.9,2642.1,26.52]
[1645375450363,0.00894915,2642.6,2642.3,11.52]
[1645375450564,0.00894915,2642.6,2642.3,11.82]
[1645375450758,0.00894915,2642.6,2642.5,11.52]
[1645375450959,0.00894915,2642.6,2642.5,11.82]
[1645375451213,0.25,2643.0,2642.5,14.30899244]
[1645375451420,1.01691406,2643.8,2642.7,11.52]
[1645375451613,1.60782211,2643.7,2642.7,12.76634]
[1645375451811,1.60782211,2643.6,2642.8,1.0]
[1645375452312,0.04263176,2643.5,2642.8,1.0]
[1645375452719,0.04206334,2643.4,2642.8,1.0]
[1645375452917,0.04206334,2643.4,2643.1,0.85617141]
[1645375453116,0.04149491,2643.3,2643.1,0.85617141]
[1645375453313,0.04149491,2643.3,2643.1,12.97617141]
[1645375453515,0.25790454,2644.3,2643.1,13.11437138]
[1645375453516,0.04092649,2643.2,2643.1,13.11437138]
[1645375453914,0.25790454,2644.3,2643.4,0.94611]
[1645375453915,1.14639064,2644.3,2643.4,0.94611]
[1645375454117,1.6075647,2644.2,2643.5,11.52]
[1645375454314,1.6075647,2644.2,2643.6,1.02627115]
[1645375454515,1.6075647,2644.2,2643.6,12.54627115]
[1645375454715,1.6075647,2644.2,2643.6,12.84627115]
[1645375454972,1.6075647,2644.2,2643.6,1.32627115]
[1645375455369,0.00243284,2644.0,2643.7,0.94595]
[1645375455568,0.00243284,2644.0,2643.8,11.52]
[1645375455771,0.00243284,2644.0,2643.8,0.6]
[1645375456167,1.60727175,2644.3,2643.8,0.6]
[1645375456369,0.00243284,2644.0,2643.8,0.6]
[1645375456769,0.00243284,2644.0,2643.8,0.3]
[1645375457169,0.00243284,2644.0,2643.4,0.3]
[1645375457367,1.60731892,2644.2,2643.2,1.35610502]
[1645375457567,0.00243284,2644.0,2643.2,1.35610502]
[1645375457768,0.00243284,2644.0,2643.4,0.94608]
[1645375457967,0.00243284,2644.0,2643.5,0.3]
[1645375458371,1.60731892,2644.3,2643.5,0.3]
[1645375458567,0.6994861,2644.7,2643.5,0.3]
[1645375458568,1.60731892,2644.2,2643.5,0.3]
[1645375458807,0.00235078,2643.9,2643.5,12.82]
[1645375459008,0.00235078,2643.9,2643.6,0.98328002]
[1645375459210,0.00235078,2643.9,2643.6,1.58328002]
[1645375459609,1.60731892,2644.2,2643.6,1.58328002]
[1645375460014,0.00235078,2643.9,2643.6,1.58328002]
[1645375460809,1.60731892,2644.2,2643.6,1.58328002]
[1645375461012,0.00235078,2643.9,2643.6,1.58328002]
[1645375462112,1.60731892,2644.2,2643.6,1.58328002]
[1645375462310,0.00224639,2643.9,2643.6,1.58328002]
[1645375463063,0.00224639,2643.9,2643.6,0.6]
[1645375463260,2.30680502,2644.2,2643.1,0.13819997]
[1645375463459,0.189,2644.4,2643.1,0.13819997]
[1645375463460,2.30680502,2644.1,2643.1,0.13819997]
[1645375463660,0.00224639,2643.9,2643.1,0.13819997]
[1645375463857,1.60956531,2643.9,2643.1,0.13819997]
[1645375464058,1.60731892,2643.8,2643.1,1.04241145]
[1645375464258,1.60731892,2643.8,2643.1,0.43819997]
[1645375464460,1.60731892,2643.8,2642.8,1.89239]
[1645375464761,0.00224648,2643.6,2642.7,1.8924]
[1645375464961,0.00224648,2643.6,2642.7,13.4124]
[1645375465160,0.00224648,2643.6,2642.7,1.8924]
[1645375465561,1.60731892,2643.8,2642.7,1.8924]
[1645375465862,0.00226185,2643.3,2642.9,1.1546338]
[1645375466063,0.00226185,2643.3,2642.9,1.4546338]
[1645375466911,1.60731892,2643.6,2642.9,1.4546338]
[1645375467112,0.00226187,2643.2,2642.9,1.4546338]
[1645375468012,1.60731892,2643.5,2642.9,1.4546338]
[1645375468213,0.00226188,2643.2,2642.9,1.4546338]
[1645375469316,1.60731892,2643.5,2642.9,1.4546338]
[1645375469515,0.00225966,2643.2,2642.9,1.4546338]
[1645375469716,0.00225966,2643.2,2642.6,0.189]
[1645375469977,2.57262001,2642.8,2641.7,0.94897091]
[1645375470163,5.10731892,2642.7,2641.7,0.94897091]
[1645375470463,3.5,2642.7,2641.8,11.52]
[1645375470662,2.57262001,2642.8,2641.8,11.52]
[1645375470862,0.00225992,2642.4,2641.7,0.94897048]
[1645375471266,0.00225992,2642.4,2641.7,0.00226048]
[1645375471665,3.5,2642.5,2641.6,1.1754]
[1645375471864,3.5,2642.7,2641.4,0.94683]
[1645375472065,3.5,2642.7,2641.7,0.00226038]
[1645375472066,0.00225986,2642.3,2641.7,0.00226038]
[1645375472666,0.00225986,2642.3,2641.8,0.90051613]
[1645375472867,5.10812616,2642.4,2641.4,0.94683]
[1645375473067,5.10812616,2642.4,2641.1,7.62256]
[1645375473068,1.60812616,2642.3,2641.1,5.7292]
[1645375473270,3.5,2642.2,2641.7,0.00226069]
[1645375473470,1.60812616,2642.1,2641.7,0.00226069]
[1645375473914,0.89194735,2642.0,2641.7,0.00226069]
[1645375474119,3.5,2642.6,2641.3,0.89570571]
[1645375474313,0.00226012,2642.3,2641.7,0.00226064]
[1645375474713,1.61064708,2642.3,2641.7,0.00226064]
[1645375475114,1.60838696,2642.2,2641.9,0.9517005]
[1645375475314,3.6892,2642.6,2641.9,0.9517005]
[1645375475513,1.60831706,2642.5,2641.9,0.9517005]
[1645375475712,0.00226017,2642.3,2641.7,0.00226069]
[1645375476512,1.60831706,2642.5,2641.4,13.1805561]
[1645375476717,0.00226013,2642.3,2641.7,0.00226065]
[1645375476915,1.61057719,2642.3,2641.7,0.00226065]
[1645375477114,1.113395,2641.2,2641.1,11.52]
[1645375477316,1.113395,2641.2,2641.0,1.13819997]
[1645375477576,1.113395,2641.2,2641.0,0.13819997]
[1645375478278,1.113395,2641.2,2641.1,0.84807954]
[1645375479081,1.113395,2641.2,2641.1,0.90863564]
[1645375479283,1.113395,2641.2,2641.1,1.50863564]
[1645375479480,1.113395,2641.2,2641.1,2.50863564]
[1645375479678,1.06192528,2641.2,2641.1,2.50863564]
[1645375482814,1.06192528,2641.2,2641.1,0.0605561]
[1645375483016,1.06192528,2641.2,2641.0,0.00243416]
[1645375483818,8.5,2641.1,2639.5,0.89428359]
[1645375484017,8.5,2641.1,2639.1,0.94762]
[1645375484018,0.5,2640.7,2639.1,0.94762]
[1645375484218,0.3772,2640.8,2638.8,3.5]
[1645375484219,0.5,2640.0,2638.8,3.5]
[1645375484423,0.5,2640.0,2638.6,3.5]
[1645375485080,5.3772,2639.6,2638.5,1.09832199]
[1645375485270,5.0,2639.8,2637.5,0.9480928]
[1645375485468,3.6894,2639.7,2639.2,0.00243488]
[1645375485667,0.1894,2639.7,2639.2,0.00243488]
[1645375485870,5.0,2639.6,2639.2,0.00243488]
[1645375486069,0.1894,2639.5,2639.2,0.00243488]
[1645375486267,0.1894,2639.5,2638.7,0.84850351]
[1645375486268,1.74039821,2639.5,2638.7,0.84850351]
[1645375486467,1.74039821,2639.5,2639.3,0.00243482]
[1645375487267,1.74039821,2639.5,2638.1,0.94799]
[1645375487469,11.8972,2639.3,2637.6,7.51819997]
[1645375487672,5.0,2639.0,2637.7,0.00974498]
[1645375487870,1.06556888,2638.7,2638.0,1.17034945]
[1645375488067,1.06556888,2638.7,2637.7,0.00974498]
[1645375488475,1.06556888,2638.7,2636.3,7.88398421]
[1645375488476,5.0,2637.8,2636.4,3.5]
[1645375488720,0.01217143,2637.1,2635.4,0.00245116]
[1645375488921,0.01217143,2637.1,2636.3,0.0365535]
[1645375488922,0.1895,2637.0,2636.3,0.0365535]
[1645375489116,5.0,2638.2,2637.0,0.98127125]
[1645375489316,2.61107513,2638.1,2637.0,0.98127125]
[1645375489513,5.0,2638.4,2637.0,0.98127125]
[1645375489514,5.30057513,2638.0,2637.0,0.98127125]
[1645375489724,0.1895,2638.0,2637.0,0.98127125]
[1645375489915,0.1895,2638.2,2637.0,0.98127125]
[1645375490114,0.89799299,2638.0,2637.0,0.98127125]
[1645375490316,0.1895,2637.9,2637.0,0.98127125]
[1645375490714,0.89799299,2638.0,2637.0,0.98127125]
[1645375491515,3.5,2637.9,2637.0,0.98127125]
[1645375492324,1.08749299,2638.0,2637.0,0.98127125]
[1645375492571,0.1895,2638.2,2637.3,0.00242266]
[1645375493265,0.1895,2638.2,2637.0,0.98127125]
[1645375493767,0.93698589,2638.0,2637.6,0.00242259]
[1645375493968,0.1895,2637.9,2637.6,0.00242259]
[1645375494566,0.1895,2637.9,2637.0,0.98127125]
[1645375494767,3.6895,2637.9,2637.6,0.00101836]
[1645375494970,0.0020247,2637.5,2636.9,0.00407445]
[1645375495777,0.84212709,2637.4,2636.6,1.04063321]
[1645375496352,0.0020247,2637.5,2636.6,1.04063321]
[1645375497121,0.0020247,2637.5,2636.9,0.00242592]
[1645375497319,0.13719046,2636.3,2636.0,2.54866]
[1645375497523,0.25,2637.2,2636.7,1.11991679]
[1645375497719,0.0020247,2637.5,2636.7,1.11991679]
[1645375498520,0.0020247,2637.5,2636.8,11.52]
[1645375498724,0.0020247,2637.5,2637.1,1.04097585]
[1645375498920,0.0020247,2637.5,2636.9,1.0]
[1645375499121,0.0020247,2637.5,2636.9,12.52]
[1645375499323,0.0020247,2637.5,2637.0,1.0]
[1645375499524,0.0020247,2637.5,2637.1,11.52]
[1645375499725,0.0020247,2637.5,2636.7,1.9484]
[1645375499967,0.0020247,2637.5,2636.7,0.9484]
[1645375500167,0.0020247,2637.5,2636.2,11.52]
[1645375500362,0.0020247,2637.5,2636.5,1.10475074]
[1645375500561,0.0020247,2637.5,2636.6,11.52]
[1645375501362,1.03065082,2637.4,2636.5,1.10475074]
[1645375501964,1.03065082,2637.4,2636.1,11.56035807]
[1645375502165,0.00242146,2637.1,2636.2,0.0024223]
[1645375502962,1.03505906,2637.0,2636.3,1.11456704]
[1645375503163,3.5020247,2637.5,2636.3,1.11456704]
[1645375503363,0.00241913,2636.8,2636.3,1.11456704]
[1645375504228,1.02589357,2637.2,2636.3,1.11456704]
[1645375504621,0.00241917,2636.7,2636.3,1.11456704]
[1645375505023,0.00241917,2636.7,2636.3,12.63456704]
[1645375505428,0.2520247,2637.5,2636.4,12.52]
[1645375505828,0.00241918,2636.6,2636.4,12.52]
[1645375506125,1.918e-05,2636.6,2636.4,19.41693]
[1645375506324,0.2520247,2637.5,2636.5,35.52]
[1645375506526,0.2520247,2637.5,2636.4,7.89693]
[1645375506527,0.0020247,2637.5,2636.8,11.52]
[1645375506727,3.5,2638.2,2637.0,11.82]
[1645375506938,3.5,2638.2,2637.0,0.3]
[1645375507326,0.89472914,2638.1,2637.4,0.8595134]
[1645375507978,3.6895,2638.5,2637.4,0.8595134]
[1645375508175,3.5,2638.5,2637.4,0.8595134]
[1645375508674,0.4395,2638.6,2637.4,0.8595134]
[1645375509074,1.04349141,2638.5,2637.8,0.90230635]
[1645375509274,1.04349141,2638.5,2638.0,0.38381612]
[1645375509474,0.25,2638.6,2638.0,0.38381612]
[1645375509676,3.5,2638.9,2638.0,0.38381612]
[1645375509876,0.5,2639.0,2638.1,11.52]
[1645375510077,0.5,2639.0,2638.0,0.38381612]
[1645375510274,0.5,2639.3,2638.0,0.38381612]
[1645375510678,0.00242513,2638.7,2638.3,1.18565371]
[1645375511315,0.00242513,2638.7,2638.3,12.70565371]
[1645375511510,0.5,2639.3,2638.3,12.70565371]
[1645375511710,0.00242515,2638.6,2638.3,12.70565371]
[1645375512813,0.5,2639.3,2638.3,12.70565371]
[1645375513011,0.00242517,2638.6,2638.3,12.70565371]
[1645375514011,0.5,2639.3,2638.3,12.70565371]
[1645375514212,0.00242517,2638.6,2638.3,12.70565371]
[1645375514612,0.00242517,2638.6,2638.5,11.52]
[1645375515281,1.08805791,2639.4,2638.8,1.0235197]
[1645375515480,0.00968929,2639.1,2638.8,1.0235197]
[1645375516286,0.25,2639.4,2638.8,12.5435197]
[1645375516485,2.7553,2640.1,2638.8,12.5435197]
[1645375516486,0.1894,2640.0,2638.8,12.5435197]
[1645375516684,0.00242254,2639.1,2638.9,12.52]
[1645375517085,0.00242254,2639.1,2638.8,1.0235197]
[1645375517282,0.00242254,2639.1,2638.8,13.00296295]
[1645375517482,0.0096887,2639.5,2638.8,13.00296295]
[1645375517685,3.5,2639.8,2638.8,12.00296295]
[1645375517886,0.00242254,2639.1,2638.8,12.00296295]
[1645375518711,0.4394,2640.1,2638.8,12.00296295]
[1645375518911,1.60975929,2640.0,2638.8,12.00296295]
[1645375519112,0.00242499,2639.1,2638.8,1.17658922]
[1645375519710,0.00242499,2639.1,2638.8,12.69658922]
[1645375520015,0.25,2640.1,2639.0,11.90381612]
[1645375520211,0.00969849,2639.5,2639.1,0.1894]
[1645375520411,0.00969849,2639.5,2639.2,11.52]
[1645375520811,0.00969849,2639.5,2639.4,11.52]
[1645375521017,0.00969849,2639.5,2639.4,12.62589934]
[1645375521214,1.09422515,2640.7,2639.4,13.62589934]
[1645375521412,3.6894,2640.8,2639.4,13.62589934]
[1645375521413,0.00242484,2639.5,2639.4,13.62589934]
[1645375522462,0.25,2640.8,2639.4,13.62589934]
[1645375522762,0.0024248,2639.6,2639.4,13.62589934]
[1645375523163,0.0024248,2639.6,2639.5,12.52]
[1645375523567,0.25,2640.8,2639.5,12.52]
[1645375523764,1.60933302,2640.7,2639.5,12.52]
[1645375523967,0.00242476,2639.7,2639.5,12.52]
[1645375524765,0.25,2640.8,2639.5,12.52]
[1645375524966,0.25,2640.8,2639.7,11.51757526]
[1645375524967,0.00969752,2640.1,2639.7,11.51757526]
[1645375525365,0.00969752,2640.1,2639.8,12.51757526]
[1645375525567,0.00969752,2640.1,2639.8,11.51757526]
[1645375525969,0.9494016,2640.7,2640.1,0.93536164]
[1645375526229,1.60927045,2640.6,2639.8,11.51757526]
[1645375526617,0.1892,2640.9,2639.8,11.51757526]
[1645375526817,1.60927305,2640.8,2639.9,1.0]
[1645375527218,1.60927305,2640.7,2639.6,11.90381612]
[1645375527519,0.6892,2641.0,2639.8,11.52]
[1645375527520,1.60927305,2640.6,2639.8,11.52]
[1645375527721,1.60927305,2640.5,2639.9,1.10343523]
[1645375528119,1.60927305,2640.5,2640.0,11.52]
[1645375528422,0.6892,2641.0,2639.9,1.10343523]
[1645375528621,1.60919066,2640.9,2639.9,12.62343523]
[1645375528824,1.60919066,2640.9,2640.0,12.52]
[1645375529020,1.60919066,2640.8,2640.0,12.52]
[1645375529219,1.60919066,2640.7,2640.6,0.88606982]
[1645375529424,2.16083774,2641.2,2640.6,0.88606982]
[1645375529624,1.60894671,2641.1,2640.6,0.88606982]
[1645375529821,0.00969634,2640.9,2640.6,0.88606982]
[1645375530271,0.00969634,2640.9,2640.8,0.76763224]
[1645375530870,1.06192528,2641.2,2640.8,0.76763224]
[1645375531071,0.00242428,2641.0,2640.8,0.76763224]
[1645375531267,0.00242428,2641.0,2640.8,0.74923224]
[1645375531479,1.44813416,2640.7,2640.0,0.1892]
[1645375531769,1.44813416,2640.7,2639.8,1.4159]
[1645375531967,1.44813416,2640.7,2639.6,0.1892]
[1645375532168,0.00242447,2640.5,2639.9,11.52]
[1645375532366,0.00242447,2640.5,2640.3,1.06813996]
[1645375533169,1.44813416,2640.7,2640.3,1.36813996]
[1645375533368,0.00242445,2640.5,2640.3,1.36813996]
[1645375533570,0.00242445,2640.5,2640.3,1.66813996]
[1645375534413,1.44813416,2640.7,2640.3,1.66813996]
[1645375534616,0.00242445,2640.5,2640.3,1.66813996]
[1645375535615,1.44813416,2640.7,2640.3,1.66813996]
[1645375535817,0.00242445,2640.5,2640.3,1.66813996]
[1645375536819,1.44813416,2640.7,2640.3,1.66813996]
[1645375537020,0.00242445,2640.5,2640.3,1.66813996]
[1645375537320,0.04814305,2640.1,2640.0,12.52]
[1645375537569,0.04814305,2640.1,2640.0,13.46268401]
[1645375539177,0.04814305,2640.1,2640.0,13.76268401]
[1645375539375,0.04814305,2640.1,2640.0,14.06268401]
[1645375543511,0.00242458,2640.2,2640.1,11.0]
[1645375543813,0.00242458,2640.2,2640.1,12.52]
[1645375544011,1.44813416,2640.7,2640.1,12.52]
[1645375544215,0.00242454,2640.3,2640.1,12.52]
[1645375544412,0.00242454,2640.3,2640.2,1.0]
[1645375544611,0.00242454,2640.3,2640.2,1.6]
[1645375545258,1.44813416,2640.7,2640.2,1.6]
[1645375545459,1.44813416,2640.7,2640.6,0.89152817]
[1645375545659,1.44813416,2640.7,2640.6,1.19152817]
[1645375546560,1.44813416,2640.7,2640.6,0.89152817]
[1645375549314,1.44813416,2640.7,2640.6,1.19152817]
[1645375552011,0.00242435,2640.8,2640.7,11.52]
[1645375552467,1.06192528,2641.2,2640.7,12.52]
[1645375552864,1.06192528,2641.2,2640.9,11.51757568]
[1645375553065,1.06192528,2641.2,2641.0,13.50527726]
[1645375553268,1.06192528,2641.2,2641.1,1.0]
[1645375553469,1.06192528,2641.2,2641.1,12.51757568]
[1645375553666,1.06192528,2641.2,2641.1,1.0]
[1645375554066,1.06192528,2641.2,2641.1,12.52]
[1645375554665,1.06192528,2641.2,2641.1,16.02]
[1645375555267,0.75,2642.0,2641.3,11.52]
[1645375555468,0.75,2642.0,2641.5,11.52]
[1645375555469,1.60840989,2641.9,2641.5,11.52]
[1645375555868,1.60840989,2641.8,2641.6,12.52]
[1645375556066,0.6994861,2642.5,2641.6,12.52]
[1645375556313,0.0096944,2642.2,2642.1,12.40883066]
[1645375556515,1.61799894,2642.2,2642.1,0.88883066]
[1645375556812,1.61799894,2642.2,2642.1,1.48883066]
[1645375557015,1.61799894,2642.2,2642.1,13.00883066]
[1645375557413,1.60830454,2642.2,2642.1,11.5934213]
[1645375557811,0.0024238,2642.3,2642.1,11.5934213]
[1645375558010,0.00969373,2642.7,2642.1,1.46778158]
[1645375558011,1.5605461,2642.5,2642.1,1.46778158]
[1645375558214,0.00969373,2642.7,2642.1,12.76120288]
[1645375558413,2.57262001,2642.8,2642.1,12.76120288]
[1645375559311,3.73255292,2642.8,2642.1,13.06120288]
[1645375559964,3.73255292,2642.8,2642.1,0.6]
[1645375560367,3.73255292,2642.8,2642.1,11.2934213]
[1645375560568,3.73255292,2642.8,2642.1,11.5934213]
[1645375560767,3.73255292,2642.8,2642.1,11.8934213]
[1645375561168,0.00242369,2642.6,2642.1,11.8934213]
[1645375561366,0.00242369,2642.6,2642.1,12.8400613]
[1645375561569,0.00242369,2642.6,2642.2,11.2934213]
[1645375562171,3.73255292,2642.8,2642.1,13.06664]
[1645375562370,0.0024237,2642.5,2642.1,13.06664]
[1645375562567,0.0024237,2642.5,2642.2,11.52]
[1645375562767,0.0024237,2642.5,2642.1,1.54664]
[1645375563070,0.0024237,2642.5,2641.8,1.89327]
[1645375563369,3.73255292,2642.8,2641.8,1.89327]
[1645375563370,0.6994861,2642.7,2641.8,1.89327]
[1645375563568,4.62123902,2642.8,2641.8,1.89327]
[1645375563818,0.00242374,2642.4,2641.8,1.89327]
[1645375564414,0.25,2642.5,2641.8,13.41327]
[1645375564619,0.25,2642.5,2642.0,1.89331]
[1645375564820,0.25,2642.5,2642.1,0.3]
[1645375564821,0.00242363,2642.4,2642.1,0.3]
[1645375565019,0.00242363,2642.4,2642.1,0.6]
[1645375565614,0.25,2642.5,2642.1,0.6]
[1645375566015,0.00242371,2642.4,2642.1,1.76996717]
[1645375566315,0.00242371,2642.4,2642.1,13.28996717]
[1645375566515,0.00242371,2642.4,2642.2,11.52]
[1645375566715,0.00242371,2642.4,2642.1,1.76996717]
[1645375566716,0.00242371,2642.4,2642.1,1.54663]
[1645375566917,0.25,2642.5,2642.1,1.54663]
[1645375567315,0.00242374,2642.4,2642.1,1.54663]
[1645375567574,0.00242374,2642.4,2642.1,13.06663]
[1645375567770,0.00242374,2642.4,2642.3,0.94935132]
[1645375568173,0.25,2642.5,2642.3,0.94935132]
[1645375568471,0.00242371,2642.4,2642.3,0.94935132]
[1645375568872,0.00242371,2642.4,2642.3,12.76935132]
[1645375569272,0.00242371,2642.4,2642.3,2.24935132]
[1645375569575,0.25,2642.5,2642.3,2.24935132]
[1645375569576,0.25242372,2642.5,2642.3,2.24935132]
[1645375569772,0.25242372,2642.5,2642.3,1.24935132]
[1645375570576,0.25,2642.5,2642.3,1.24935132]
[1645375570774,0.0024237,2642.5,2642.3,1.24935132]
[1645375570973,0.0024237,2642.5,2642.3,1.14935132]
[1645375571222,0.0024237,2642.5,2642.1,1.0]
[1645375571416,0.0024237,2642.5,2641.9,1.1994]
[1645375571615,0.0024237,2642.5,2641.9,0.3]
[1645375571813,0.25,2642.4,2641.7,1.89353]
[1645375572014,0.44162374,2642.4,2641.7,1.89353]
[1645375572214,0.5,2641.8,2641.4,0.94701]
[1645375572415,1.1871056,2641.5,2640.8,1.11609624]
[1645375572817,0.25,2641.3,2640.8,1.11609624]
[1645375573611,0.25,2641.3,2641.0,0.94713]
[1645375575466,1.12251656,2641.1,2641.0,0.94713]
[1645375575661,0.25,2641.3,2641.0,0.94713]
[1645375576263,0.25,2641.3,2640.6,0.94727]
[1645375576963,0.5,2641.2,2640.6,0.94727]